[Event "*** Titled Tuesday Blitz"]
[Site "Chess.com"]
[Date "2020.12.29"]
[Round "5"]
[White "ExtremeLearner"]
[Black "MarcoCorvi"]
[Result "1-0"]
[WhiteElo "2364"]
[BlackElo "2177"]
[TimeControl "180+1"]
[EndTime "10:56:28 PST"]
[Termination "ExtremeLearner won by resignation"]

1. d4 {[%clk 0:03:00.9]} 1... Nf6 {[%clk 0:02:57.9]} 2. Nf3 {[%clk 0:02:59.1]}
2... g6 {[%clk 0:02:55.9]} 3. g3 {[%clk 0:03:00]} 3... Bg7 {[%clk 0:02:51.9]} 4.
Bg2 {[%clk 0:03:00.9]} 4... d6 {[%clk 0:02:48.3]} 5. O-O {[%clk 0:03:01.8]} 5...
O-O {[%clk 0:02:45]} 6. b3 {[%clk 0:02:59]} 6... Nbd7 {[%clk 0:02:30.7]} 7. Bb2
{[%clk 0:02:56.9]} 7... c5 {[%clk 0:02:30.7]} 8. c4 {[%clk 0:02:50.1]} 8... cxd4
{[%clk 0:02:12.4]} 9. Nxd4 {[%clk 0:02:48]} 9... Nc5 {[%clk 0:01:55.8]} 10. Nc3
{[%clk 0:02:36.6]} 10... a5 {[%clk 0:01:33.9]} 11. e4 {[%clk 0:02:22.4]} 11...
Bg4 {[%clk 0:01:30.6]} 12. f3 {[%clk 0:02:20.2]} 12... Bd7 {[%clk 0:01:29]} 13.
Kh1 {[%clk 0:02:00.8]} 13... Qb6 {[%clk 0:01:25.5]} 14. Ba3 {[%clk 0:01:41.2]}
14... Rfc8 {[%clk 0:01:24.8]} 15. Rb1 {[%clk 0:01:24.2]} 15... Qd8 {[%clk
0:01:23.9]} 16. Ncb5 {[%clk 0:01:07.3]} 16... h5 {[%clk 0:01:20]} 17. Qe2 {[%clk
0:00:48.5]} 17... Bxb5 {[%clk 0:01:19.4]} 18. Nxb5 {[%clk 0:00:46.8]} 18... Nfd7
{[%clk 0:01:16.8]} 19. Rbd1 {[%clk 0:00:42.9]} 19... Qf8 {[%clk 0:01:14.2]} 20.
Bb2 {[%clk 0:00:40]} 20... Bxb2 {[%clk 0:01:13.5]} 21. Qxb2 {[%clk 0:00:39.6]}
21... Qg7 {[%clk 0:01:14.2]} 22. Qxg7+ {[%clk 0:00:37.9]} 22... Kxg7 {[%clk
0:01:15.1]} 23. f4 {[%clk 0:00:38.3]} 23... a4 {[%clk 0:01:12]} 24. b4 {[%clk
0:00:31.5]} 24... Na6 {[%clk 0:01:11.3]} 25. e5 {[%clk 0:00:27.2]} 25... Rxc4
{[%clk 0:01:02.6]} 26. exd6 {[%clk 0:00:21.7]} 26... Nxb4 {[%clk 0:00:42.5]} 27.
dxe7 {[%clk 0:00:18.2]} 27... Nf6 {[%clk 0:00:36.7]} 28. Rd8 {[%clk 0:00:15.5]}
28... Rcc8 {[%clk 0:00:31.2]} 29. Rfd1 {[%clk 0:00:15.1]} 29... Nc6 {[%clk
0:00:10.6]} 30. Bxc6 {[%clk 0:00:14.2]} 30... bxc6 {[%clk 0:00:11.5]} 31. Nc7
{[%clk 0:00:13.1]} 31... Rxc7 {[%clk 0:00:10.9]} 32. Rxa8 {[%clk 0:00:11.5]}
32... Rxe7 {[%clk 0:00:10.5]} 33. Rxa4 {[%clk 0:00:11.8]} 33... Ng4 {[%clk
0:00:10.5]} 34. Rf1 {[%clk 0:00:06.9]} 34... Re2 {[%clk 0:00:10.3]} 35. h3
{[%clk 0:00:06.1]} 35... Ne3 {[%clk 0:00:08.8]} 36. Rc1 {[%clk 0:00:03.8]} 36...
Nf5 {[%clk 0:00:08.7]} 37. Rac4 {[%clk 0:00:04]} 37... Nxg3+ {[%clk 0:00:07.9]}
38. Kg1 {[%clk 0:00:04.6]} 38... Nf5 {[%clk 0:00:06.6]} 39. Rxc6 {[%clk
0:00:04.6]} 39... Rxa2 {[%clk 0:00:07]} 40. Rc7 {[%clk 0:00:04.9]} 40... Ra3
{[%clk 0:00:06.9]} 41. Kh2 {[%clk 0:00:04.4]} 41... Rf3 {[%clk 0:00:06.3]} 42.
Rb7 {[%clk 0:00:04.2]} 42... Rxf4 {[%clk 0:00:06.2]} 43. Rcc7 {[%clk 0:00:04.7]}
43... Nh4 {[%clk 0:00:06.1]} 44. Kg3 {[%clk 0:00:04.8]} 44... g5 {[%clk
0:00:06.3]} 45. Rc5 {[%clk 0:00:03.6]} 45... Kg6 {[%clk 0:00:06.3]} 46. Rb6+
{[%clk 0:00:03.4]} 46... f6 {[%clk 0:00:06.5]} 47. Rbb5 {[%clk 0:00:03.8]} 47...
Nf5+ {[%clk 0:00:06.3]} 48. Kh2 {[%clk 0:00:03.9]} 48... h4 {[%clk 0:00:06.7]}
49. Rc7 {[%clk 0:00:03.6]} 49... Ne3 {[%clk 0:00:05.1]} 50. Rbb7 {[%clk
0:00:03.6]} 50... Rf2+ {[%clk 0:00:05]} 51. Kh1 {[%clk 0:00:03.9]} 51... Rf3
{[%clk 0:00:04.9]} 52. Kh2 {[%clk 0:00:04]} 52... Kf5 {[%clk 0:00:04.9]} 53. Rb4
{[%clk 0:00:03.2]} 53... Nd5 {[%clk 0:00:03.8]} 54. Rc5 {[%clk 0:00:03.6]} 54...
Rd3 {[%clk 0:00:03.9]} 55. Rbb5 {[%clk 0:00:03.7]} 55... Ke5 {[%clk 0:00:04.2]}
56. Kg2 {[%clk 0:00:03.4]} 56... f5 {[%clk 0:00:04.5]} 57. Kf2 {[%clk 0:00:03]}
57... g4 {[%clk 0:00:05.4]} 58. hxg4 {[%clk 0:00:03.1]} 58... fxg4 {[%clk
0:00:06.1]} 59. Rc4 {[%clk 0:00:04]} 59... g3+ {[%clk 0:00:06.3]} 60. Kg2 {[%clk
0:00:04.5]} 60... Rd4 {[%clk 0:00:06.8]} 61. Rc8 {[%clk 0:00:02.4]} 61... Ke4
{[%clk 0:00:05]} 62. Re8+ {[%clk 0:00:02.8]} 62... Kd3 {[%clk 0:00:04.8]} 63.
Kh3 {[%clk 0:00:02.9]} 63... Nf4+ {[%clk 0:00:05.7]} 64. Kxh4 {[%clk 0:00:03.3]}
64... Ne2+ {[%clk 0:00:06.3]} 65. Kh3 {[%clk 0:00:03.1]} 65... Rc4 {[%clk
0:00:07.2]} 66. Rd8+ {[%clk 0:00:03.2]} 66... Rd4 {[%clk 0:00:06.6]} 67. Rg5
{[%clk 0:00:04.1]} 67... Ke4 {[%clk 0:00:04.6]} 68. Rg4+ {[%clk 0:00:03.9]}
68... Nf4+ {[%clk 0:00:04.8]} 69. Rxf4+ {[%clk 0:00:04.4]} 69... Kxf4 {[%clk
0:00:05.2]} 70. Rxd4+ {[%clk 0:00:05.3]} 70... Ke3 {[%clk 0:00:06.1]} 71. Rg4
{[%clk 0:00:05.7]} 71... Kf3 {[%clk 0:00:05.6]} 72. Rxg3+ {[%clk 0:00:05.9]}
72... Ke2 {[%clk 0:00:06.5]} 73. Kg2 {[%clk 0:00:06.3]} 73... Ke1 {[%clk
0:00:06.5]} 74. Rf3 {[%clk 0:00:07.2]} 74... Kd2 {[%clk 0:00:07]} 75. Kg3 {[%clk
0:00:07.2]} 75... Kc2 {[%clk 0:00:07.9]} 76. Kf4 {[%clk 0:00:08.1]} 1-0

[Event "*** Titled Tuesday Blitz"]
[Site "Chess.com"]
[Date "2020.12.29"]
[Round "5"]
[White "Lagmantr"]
[Black "Anna_ChessMate"]
[Result "1-0"]
[WhiteElo "2782"]
[BlackElo "2555"]
[TimeControl "180+1"]
[EndTime "10:56:30 PST"]
[Termination "Lagmantr won on time"]

1. e4 {[%clk 0:03:00.9]} 1... c6 {[%clk 0:03:00.1]} 2. d4 {[%clk 0:02:58.9]}
2... d5 {[%clk 0:03:01]} 3. Nc3 {[%clk 0:02:59.7]} 3... dxe4 {[%clk 0:03:00.3]}
4. Nxe4 {[%clk 0:03:00.6]} 4... Bf5 {[%clk 0:03:00.5]} 5. Ng3 {[%clk 0:03:00.8]}
5... Bg6 {[%clk 0:03:00.7]} 6. Bc4 {[%clk 0:03:01.5]} 6... e6 {[%clk 0:02:59.4]}
7. N1e2 {[%clk 0:03:02.1]} 7... Bd6 {[%clk 0:02:56.8]} 8. O-O {[%clk 0:03:02.7]}
8... Qc7 {[%clk 0:02:56.7]} 9. f4 {[%clk 0:03:02.3]} 9... Ne7 {[%clk 0:02:55.9]}
10. c3 {[%clk 0:03:00.1]} 10... O-O {[%clk 0:02:56.2]} 11. Bd2 {[%clk
0:02:59.8]} 11... Nd7 {[%clk 0:02:56.5]} 12. Bb3 {[%clk 0:02:58.7]} 12... a5
{[%clk 0:02:55.9]} 13. a4 {[%clk 0:02:57.4]} 13... b5 {[%clk 0:02:55]} 14. Kh1
{[%clk 0:02:54.8]} 14... h6 {[%clk 0:02:47.6]} 15. Bc2 {[%clk 0:02:52.8]} 15...
Bxc2 {[%clk 0:02:45.9]} 16. Qxc2 {[%clk 0:02:53.7]} 16... b4 {[%clk 0:02:45.2]}
17. c4 {[%clk 0:02:52.8]} 17... c5 {[%clk 0:02:45.3]} 18. b3 {[%clk 0:02:52.2]}
18... Nf6 {[%clk 0:02:27.6]} 19. f5 {[%clk 0:02:39.5]} 19... exf5 {[%clk
0:02:24.9]} 20. Nxf5 {[%clk 0:02:40]} 20... Nxf5 {[%clk 0:02:22.6]} 21. Qxf5
{[%clk 0:02:40.9]} 21... cxd4 {[%clk 0:02:19.2]} 22. Bxh6 {[%clk 0:02:25.1]}
22... Nh7 {[%clk 0:02:05.9]} 23. Bf4 {[%clk 0:01:58.4]} 23... Bxf4 {[%clk
0:02:00.3]} 24. Rxf4 {[%clk 0:01:56.9]} 24... Ra6 {[%clk 0:01:47.2]} 25. Rh4
{[%clk 0:01:45.3]} 25... g6 {[%clk 0:01:37.2]} 26. Qh3 {[%clk 0:01:43.8]} 26...
f5 {[%clk 0:01:30.4]} 27. Nxd4 {[%clk 0:01:37.2]} 27... Qg7 {[%clk 0:01:23.9]}
28. Rf1 {[%clk 0:01:23.9]} 28... Ng5 {[%clk 0:01:21.7]} 29. Qd3 {[%clk
0:01:22.7]} 29... Rd6 {[%clk 0:01:16.8]} 30. c5 {[%clk 0:01:23.1]} 30... Rd5
{[%clk 0:01:10.6]} 31. Qc4 {[%clk 0:01:21.3]} 31... Qf7 {[%clk 0:01:11.1]} 32.
c6 {[%clk 0:01:04.9]} 32... Rc8 {[%clk 0:00:50.9]} 33. g4 {[%clk 0:01:00.4]}
33... f4 {[%clk 0:00:31.2]} 34. Ne2 {[%clk 0:00:11.3]} 34... f3 {[%clk
0:00:28.1]} 35. Nf4 {[%clk 0:00:10.4]} 35... Rd6 {[%clk 0:00:20.3]} 36. Qxf7+
{[%clk 0:00:10.3]} 36... Kxf7 {[%clk 0:00:21.2]} 37. Nh3 {[%clk 0:00:10.7]}
37... Kf6 {[%clk 0:00:13.4]} 38. Nxg5 {[%clk 0:00:08.5]} 38... Kxg5 {[%clk
0:00:14.3]} 39. Rh3 {[%clk 0:00:08.9]} 39... Rdxc6 {[%clk 0:00:14.4]} 40. Rhxf3
{[%clk 0:00:07.8]} 40... Kxg4 {[%clk 0:00:14.6]} 41. Rg3+ {[%clk 0:00:07.1]}
41... Kh5 {[%clk 0:00:14.9]} 42. Rfg1 {[%clk 0:00:06.6]} 42... Rc3 {[%clk
0:00:06.2]} 43. Rg5+ {[%clk 0:00:05.9]} 43... Kh6 {[%clk 0:00:05.5]} 44. Rxg6+
{[%clk 0:00:06.4]} 44... Kh7 {[%clk 0:00:06.4]} 45. Rg7+ {[%clk 0:00:06.8]}
45... Kh8 {[%clk 0:00:07.1]} 46. R7g5 {[%clk 0:00:07.2]} 46... Rh3 {[%clk
0:00:04.4]} 47. Rxa5 {[%clk 0:00:06.7]} 47... Rc2 {[%clk 0:00:04.3]} 48. Ra8+
{[%clk 0:00:04.4]} 48... Kh7 {[%clk 0:00:04.9]} 49. Rgg8 {[%clk 0:00:04.5]}
49... Rcxh2+ {[%clk 0:00:01.9]} 50. Kg1 {[%clk 0:00:04.7]} 50... Rh1+ {[%clk
0:00:02.8]} 51. Kg2 {[%clk 0:00:04.6]} 51... R1h2+ {[%clk 0:00:03.2]} 52. Kf1
{[%clk 0:00:05.1]} 52... Rh1+ {[%clk 0:00:03.8]} 53. Rg1 {[%clk 0:00:05.2]}
53... Rxg1+ {[%clk 0:00:03.7]} 54. Kxg1 {[%clk 0:00:06.1]} 54... Rxb3 {[%clk
0:00:03.7]} 55. Kf2 {[%clk 0:00:07]} 55... Ra3 {[%clk 0:00:03.3]} 56. Ke2 {[%clk
0:00:07.6]} 56... b3 {[%clk 0:00:03.8]} 57. Kd2 {[%clk 0:00:08]} 57... b2 {[%clk
0:00:03.1]} 58. Kc2 {[%clk 0:00:08.5]} 58... Ra2 {[%clk 0:00:03]} 59. Kb1 {[%clk
0:00:08.2]} 59... Ra3 {[%clk 0:00:02.7]} 60. Kxb2 {[%clk 0:00:08.8]} 60... Rf3
{[%clk 0:00:03.3]} 61. Rc8 {[%clk 0:00:08.7]} 61... Kg7 {[%clk 0:00:03.5]} 62.
a5 {[%clk 0:00:07.4]} 62... Rf5 {[%clk 0:00:03.7]} 63. a6 {[%clk 0:00:07.1]}
63... Rb5+ {[%clk 0:00:02.9]} 64. Kc3 {[%clk 0:00:06.3]} 64... Ra5 {[%clk
0:00:03.8]} 65. Rc6 {[%clk 0:00:06.6]} 65... Kf7 {[%clk 0:00:03.3]} 66. Kb4
{[%clk 0:00:07.1]} 66... Ra1 {[%clk 0:00:03.3]} 67. Kc5 {[%clk 0:00:07.6]} 67...
Ke7 {[%clk 0:00:03.5]} 68. Kb6 {[%clk 0:00:08]} 68... Kd7 {[%clk 0:00:03.8]} 69.
Kb7 {[%clk 0:00:08.6]} 69... Rb1+ {[%clk 0:00:03.2]} 70. Rb6 {[%clk 0:00:08.9]}
70... Ra1 {[%clk 0:00:02.3]} 71. a7 {[%clk 0:00:09.5]} 71... Rxa7+ {[%clk
0:00:01.5]} 72. Kxa7 {[%clk 0:00:10.4]} 1-0

[Event "*** Titled Tuesday Blitz"]
[Site "Chess.com"]
[Date "2020.12.29"]
[Round "5"]
[White "Keranke"]
[Black "igorkovalenko"]
[Result "1-0"]
[WhiteElo "2839"]
[BlackElo "2907"]
[TimeControl "180+1"]
[EndTime "10:57:19 PST"]
[Termination "Keranke won by resignation"]

1. d4 {[%clk 0:03:00.9]} 1... Nf6 {[%clk 0:02:27.8]} 2. Bf4 {[%clk 0:03:00.1]}
2... b6 {[%clk 0:02:24.6]} 3. e3 {[%clk 0:03:00.1]} 3... Bb7 {[%clk 0:02:25]} 4.
Nf3 {[%clk 0:03:00]} 4... g6 {[%clk 0:02:25.5]} 5. h3 {[%clk 0:02:59.1]} 5...
Bg7 {[%clk 0:02:26]} 6. Be2 {[%clk 0:02:59.1]} 6... O-O {[%clk 0:02:26.6]} 7.
O-O {[%clk 0:02:59.7]} 7... d6 {[%clk 0:02:27.1]} 8. c4 {[%clk 0:02:58.8]} 8...
Nfd7 {[%clk 0:02:23.6]} 9. Nc3 {[%clk 0:02:56.1]} 9... e5 {[%clk 0:02:23.8]} 10.
Bh2 {[%clk 0:02:49]} 10... Nc6 {[%clk 0:02:19.7]} 11. Nd5 {[%clk 0:02:39.6]}
11... exd4 {[%clk 0:02:15.5]} 12. exd4 {[%clk 0:02:39.1]} 12... Ne7 {[%clk
0:02:13.8]} 13. Ne3 {[%clk 0:02:37.4]} 13... Re8 {[%clk 0:02:10.1]} 14. Rc1
{[%clk 0:02:36.4]} 14... a5 {[%clk 0:02:03.3]} 15. Re1 {[%clk 0:02:36]} 15... a4
{[%clk 0:02:00.7]} 16. Qc2 {[%clk 0:02:32.1]} 16... Ra5 {[%clk 0:01:54.3]} 17.
Rcd1 {[%clk 0:02:19.2]} 17... Qa8 {[%clk 0:01:53.7]} 18. d5 {[%clk 0:02:19.3]}
18... Nc5 {[%clk 0:01:47.3]} 19. Nd4 {[%clk 0:02:17.4]} 19... Bc8 {[%clk
0:01:44.8]} 20. Bf3 {[%clk 0:02:06.6]} 20... Bd7 {[%clk 0:01:44.6]} 21. Bf4
{[%clk 0:01:57.8]} 21... Qb7 {[%clk 0:01:40.9]} 22. Ng4 {[%clk 0:01:57.5]} 22...
Bxg4 {[%clk 0:01:28.9]} 23. hxg4 {[%clk 0:01:50.6]} 23... Raa8 {[%clk
0:01:28.4]} 24. Bg5 {[%clk 0:01:43.8]} 24... Kf8 {[%clk 0:01:21.7]} 25. Qd2
{[%clk 0:01:36.7]} 25... Ng8 {[%clk 0:01:18.9]} 26. Nc6 {[%clk 0:01:33.6]} 26...
h6 {[%clk 0:00:59.1]} 27. Be3 {[%clk 0:01:20.9]} 27... Qa6 {[%clk 0:00:56.6]}
28. Rc1 {[%clk 0:01:11.2]} 28... Rac8 {[%clk 0:00:46.5]} 29. g3 {[%clk
0:01:11.1]} 29... g5 {[%clk 0:00:44.4]} 30. Qc2 {[%clk 0:01:07.1]} 30... Ne7
{[%clk 0:00:41.5]} 31. Nd4 {[%clk 0:01:01.3]} 31... Kg8 {[%clk 0:00:40.1]} 32.
Kg2 {[%clk 0:00:59.7]} 32... Bf6 {[%clk 0:00:31.6]} 33. Rh1 {[%clk 0:00:54.3]}
33... Kg7 {[%clk 0:00:32]} 34. Rh5 {[%clk 0:00:54.4]} 34... Rh8 {[%clk
0:00:31.5]} 35. Rch1 {[%clk 0:00:52.9]} 35... Rce8 {[%clk 0:00:21.6]} 36. Be2
{[%clk 0:00:40]} 36... Qc8 {[%clk 0:00:20.4]} 37. b4 {[%clk 0:00:31]} 37... axb3
{[%clk 0:00:20.1]} 38. axb3 {[%clk 0:00:31.9]} 38... Nd7 {[%clk 0:00:19.9]} 39.
f4 {[%clk 0:00:26]} 39... Nxd5 {[%clk 0:00:19.3]} 40. Nf5+ {[%clk 0:00:22.7]}
40... Kf8 {[%clk 0:00:19.1]} 41. cxd5 {[%clk 0:00:23.3]} 41... Qa8 {[%clk
0:00:19.2]} 42. Bf3 {[%clk 0:00:22.8]} 42... gxf4 {[%clk 0:00:18.9]} 43. Bxf4
{[%clk 0:00:22.2]} 43... Nc5 {[%clk 0:00:17.5]} 44. b4 {[%clk 0:00:20.7]} 44...
Qa4 {[%clk 0:00:15.5]} 45. Qxa4 {[%clk 0:00:19.8]} 45... Nxa4 {[%clk 0:00:16.4]}
46. Rxh6 {[%clk 0:00:16.8]} 46... Rxh6 {[%clk 0:00:16.5]} 47. Rxh6 {[%clk
0:00:17.7]} 47... Bc3 {[%clk 0:00:16.6]} 48. b5 {[%clk 0:00:15]} 48... Nc5
{[%clk 0:00:16.3]} 49. Bg5 {[%clk 0:00:14.6]} 49... Nd3 {[%clk 0:00:16]} 50. Bf6
{[%clk 0:00:13.1]} 50... Bxf6 {[%clk 0:00:15.7]} 51. Rxf6 {[%clk 0:00:14]} 51...
Ne1+ {[%clk 0:00:15.1]} 52. Kf2 {[%clk 0:00:14.5]} 52... Nd3+ {[%clk 0:00:14.9]}
53. Kf1 {[%clk 0:00:13.3]} 53... Re1+ {[%clk 0:00:15.1]} 54. Kg2 {[%clk
0:00:13.8]} 54... Rb1 {[%clk 0:00:15.7]} 55. Rh6 {[%clk 0:00:14.1]} 55... Kg8
{[%clk 0:00:15.4]} 56. Be4 {[%clk 0:00:13.6]} 56... Rb2+ {[%clk 0:00:14.8]} 57.
Kf3 {[%clk 0:00:11.7]} 57... Ne5+ {[%clk 0:00:15.1]} 58. Kf4 {[%clk 0:00:12]}
58... Rb4 {[%clk 0:00:14.5]} 59. Ne3 {[%clk 0:00:02.5]} 59... Rxb5 {[%clk
0:00:12.8]} 60. Rh5 {[%clk 0:00:01.7]} 60... Rb4 {[%clk 0:00:12.8]} 61. Rg5+
{[%clk 0:00:02.4]} 61... Kf8 {[%clk 0:00:12.9]} 62. Rf5 {[%clk 0:00:03]} 62...
Rb2 {[%clk 0:00:12.1]} 63. Kg5 {[%clk 0:00:02.9]} 63... Kg7 {[%clk 0:00:11.9]}
64. Rf4 {[%clk 0:00:03.2]} 64... Re2 {[%clk 0:00:10.9]} 65. Nf5+ {[%clk
0:00:03.5]} 65... Kf8 {[%clk 0:00:11.3]} 66. Nh6 {[%clk 0:00:04.1]} 66... b5
{[%clk 0:00:10.2]} 67. Bf5 {[%clk 0:00:04.2]} 67... Kg7 {[%clk 0:00:10.1]} 68.
Bc8 {[%clk 0:00:03.7]} 68... b4 {[%clk 0:00:08.4]} 69. Nf5+ {[%clk 0:00:04.1]}
69... Kf8 {[%clk 0:00:08.7]} 70. Rxb4 {[%clk 0:00:05]} 70... Rd2 {[%clk
0:00:07.8]} 71. Bb7 {[%clk 0:00:04.8]} 71... Nd3 {[%clk 0:00:05.4]} 72. Rd4
{[%clk 0:00:04.4]} 72... Ne5 {[%clk 0:00:05.7]} 73. Rxd2 {[%clk 0:00:04.3]}
73... Nf3+ {[%clk 0:00:06.2]} 74. Kf6 {[%clk 0:00:04.7]} 74... Nxd2 {[%clk
0:00:06.7]} 75. Kg5 {[%clk 0:00:04.9]} 75... Ne4+ {[%clk 0:00:06.3]} 76. Kf4
{[%clk 0:00:04.8]} 76... Nc5 {[%clk 0:00:07.2]} 77. Bc6 {[%clk 0:00:05.2]} 77...
Nd3+ {[%clk 0:00:07.3]} 78. Kg5 {[%clk 0:00:04.7]} 78... Ne5 {[%clk 0:00:07.9]}
79. Nd4 {[%clk 0:00:04.8]} 79... Kg7 {[%clk 0:00:07.7]} 80. Nb5 {[%clk
0:00:04.5]} 80... f6+ {[%clk 0:00:06.7]} 81. Kf5 {[%clk 0:00:04.7]} 81... Kf7
{[%clk 0:00:07.4]} 82. Nxc7 {[%clk 0:00:04.9]} 82... Nf3 {[%clk 0:00:07.8]} 83.
Nb5 {[%clk 0:00:04.4]} 83... Ke7 {[%clk 0:00:07.9]} 84. Kf4 {[%clk 0:00:05]}
84... Ng5 {[%clk 0:00:07.5]} 85. Nd4 {[%clk 0:00:05.2]} 85... Nh3+ {[%clk
0:00:07.8]} 86. Ke4 {[%clk 0:00:05.3]} 86... Kd8 {[%clk 0:00:07.6]} 87. Kf5
{[%clk 0:00:04.8]} 87... Ke7 {[%clk 0:00:07.7]} 88. Kg6 {[%clk 0:00:05.4]} 88...
Nf2 {[%clk 0:00:07.4]} 89. Nf5+ {[%clk 0:00:06.3]} 89... Kd8 {[%clk 0:00:07.8]}
90. Kxf6 {[%clk 0:00:06.4]} 90... Nxg4+ {[%clk 0:00:08.2]} 91. Ke6 {[%clk
0:00:06.9]} 91... Ne5 {[%clk 0:00:08.6]} 92. Nxd6 {[%clk 0:00:06.9]} 92... Nd3
{[%clk 0:00:06.5]} 93. Nf7+ {[%clk 0:00:06.9]} 93... Kc7 {[%clk 0:00:06.1]} 94.
g4 {[%clk 0:00:07.8]} 94... Nf4+ {[%clk 0:00:05.8]} 95. Kf5 {[%clk 0:00:07.6]}
95... Ne2 {[%clk 0:00:05.3]} 96. g5 {[%clk 0:00:07.9]} 96... Nd4+ {[%clk
0:00:06.2]} 97. Kf6 {[%clk 0:00:08.6]} 1-0